[Event "*** Titled Tuesday Blitz"]
[Site "Chess.com"]
[Date "2020.11.10"]
[Round "8"]
[White "shnitez"]
[Black "IceBelka"]
[Result "1-0"]
[WhiteElo "2532"]
[BlackElo "2334"]
[TimeControl "180+1"]
[EndTime "11:34:10 PST"]
[Termination "shnitez won on time"]

1. e4 {[%clk 0:03:00.9]} 1... c6 {[%clk 0:02:55.1]} 2. d4 {[%clk 0:02:58.7]}
2... d5 {[%clk 0:02:54.6]} 3. e5 {[%clk 0:02:58.8]} 3... Bf5 {[%clk 0:02:53.7]}
4. h4 {[%clk 0:02:52.5]} 4... h5 {[%clk 0:02:33.4]} 5. Bg5 {[%clk 0:02:51]} 5...
Qb6 {[%clk 0:02:27.2]} 6. Bd3 {[%clk 0:02:49.3]} 6... Bxd3 {[%clk 0:02:19.2]} 7.
Qxd3 {[%clk 0:02:50.2]} 7... Qxb2 {[%clk 0:02:16.4]} 8. e6 {[%clk 0:02:50.1]}
8... f6 {[%clk 0:01:55.3]} 9. Bd2 {[%clk 0:00:48.1]} 9... Qxa1 {[%clk
0:01:48.9]} 10. Qb3 {[%clk 0:00:46.8]} 10... Qxd4 {[%clk 0:01:48.4]} 11. Qxb7
{[%clk 0:00:46.6]} 11... Qb6 {[%clk 0:01:48.9]} 12. Qxa8 {[%clk 0:00:36.7]}
12... Qxb1+ {[%clk 0:01:48.2]} 13. Ke2 {[%clk 0:00:37]} 13... Qb5+ {[%clk
0:01:31.2]} 14. Ke1 {[%clk 0:00:33.8]} 14... g6 {[%clk 0:01:30.5]} 15. Rh3
{[%clk 0:00:31.3]} 15... Qb1+ {[%clk 0:01:20.4]} 16. Ke2 {[%clk 0:00:30]} 16...
Qb5+ {[%clk 0:01:19.9]} 17. Kd1 {[%clk 0:00:20.5]} 17... Bh6 {[%clk 0:01:03.4]}
18. Rb3 {[%clk 0:00:17.2]} 18... Qf1+ {[%clk 0:01:03]} 19. Be1 {[%clk
0:00:17.6]} 19... Kf8 {[%clk 0:00:59.8]} 20. Qxb8+ {[%clk 0:00:16.4]} 20... Kg7
{[%clk 0:00:56]} 21. Qe8 {[%clk 0:00:16.8]} 21... Bf4 {[%clk 0:00:54.9]} 22. Nh3
{[%clk 0:00:13.3]} 22... Bd6 {[%clk 0:00:45.3]} 23. Qf7+ {[%clk 0:00:13.2]}
23... Kh6 {[%clk 0:00:45.1]} 24. Rg3 {[%clk 0:00:13]} 24... Bxg3 {[%clk
0:00:41.7]} 25. fxg3 {[%clk 0:00:13.9]} 25... Rh7 {[%clk 0:00:12.9]} 26. Qxg8
{[%clk 0:00:12.9]} 26... Rg7 {[%clk 0:00:12.1]} 27. Qh8+ {[%clk 0:00:13]} 27...
Rh7 {[%clk 0:00:11.9]} 28. Qf8+ {[%clk 0:00:13.4]} 28... Rg7 {[%clk 0:00:12.2]}
29. Qh8+ {[%clk 0:00:11.6]} 29... Rh7 {[%clk 0:00:12.2]} 30. Qe8 {[%clk
0:00:11.3]} 30... Rg7 {[%clk 0:00:06.6]} 31. Nf4 {[%clk 0:00:09.5]} 31... Kh7
{[%clk 0:00:06.1]} 32. Qxc6 {[%clk 0:00:09]} 32... Qg1 {[%clk 0:00:03.2]} 33.
Qxd5 {[%clk 0:00:08.3]} 33... Qb6 {[%clk 0:00:03.1]} 34. Bd2 {[%clk 0:00:07.8]}
34... Qb1+ {[%clk 0:00:03.1]} 35. Ke2 {[%clk 0:00:07.8]} 35... Qg1 {[%clk
0:00:02.3]} 36. Nxh5 {[%clk 0:00:07.1]} 36... gxh5 {[%clk 0:00:02]} 37. Qxh5+
{[%clk 0:00:08]} 37... Kg8 {[%clk 0:00:01.9]} 38. Qe8+ {[%clk 0:00:08.6]} 38...
Kh7 {[%clk 0:00:02.3]} 39. Qh5+ {[%clk 0:00:09.5]} 39... Kg8 {[%clk 0:00:02.7]}
40. Qf3 {[%clk 0:00:07.9]} 40... Qd4 {[%clk 0:00:02.3]} 41. Bf4 {[%clk
0:00:06.8]} 41... Qc4+ {[%clk 0:00:02.7]} 42. Kf2 {[%clk 0:00:06.9]} 42... Qxe6
{[%clk 0:00:03.3]} 43. Qa8+ {[%clk 0:00:06]} 43... Kh7 {[%clk 0:00:03]} 44. a4
{[%clk 0:00:05.6]} 44... Qc4 {[%clk 0:00:02.8]} 45. Qxa7 {[%clk 0:00:04.6]}
45... Rg8 {[%clk 0:00:03.2]} 46. Kg1 {[%clk 0:00:04.2]} 46... Qxc2 {[%clk
0:00:02.5]} 47. Qxe7+ {[%clk 0:00:03.7]} 47... Rg7 {[%clk 0:00:01.8]} 48. Qxf6
{[%clk 0:00:03.7]} 48... Qxa4 {[%clk 0:00:02]} 49. Kh2 {[%clk 0:00:03.7]} 49...
Qe4 {[%clk 0:00:01.1]} 50. Qh6+ {[%clk 0:00:03.6]} 1-0

[Event "*** Titled Tuesday Blitz"]
[Site "Chess.com"]
[Date "2020.11.10"]
[Round "8"]
[White "Sueetin"]
[Black "biostatistician"]
[Result "0-1"]
[WhiteElo "2308"]
[BlackElo "2528"]
[TimeControl "180+1"]
[EndTime "11:34:11 PST"]
[Termination "biostatistician won on time"]

1. c4 {[%clk 0:03:00.9]} 1... Nf6 {[%clk 0:02:58.9]} 2. g3 {[%clk 0:03:00.2]}
2... g6 {[%clk 0:02:59.2]} 3. Bg2 {[%clk 0:02:58.9]} 3... Bg7 {[%clk 0:03:00.1]}
4. Nc3 {[%clk 0:02:54.7]} 4... O-O {[%clk 0:02:59.3]} 5. e4 {[%clk 0:02:54.4]}
5... c5 {[%clk 0:02:59.1]} 6. Nge2 {[%clk 0:02:54.3]} 6... Nc6 {[%clk
0:02:59.3]} 7. O-O {[%clk 0:02:53.7]} 7... d6 {[%clk 0:02:59.5]} 8. d3 {[%clk
0:02:52.6]} 8... Ne8 {[%clk 0:02:52]} 9. Be3 {[%clk 0:02:52]} 9... Nc7 {[%clk
0:02:52.4]} 10. d4 {[%clk 0:02:51.2]} 10... cxd4 {[%clk 0:02:51.8]} 11. Nxd4
{[%clk 0:02:51.9]} 11... Nxd4 {[%clk 0:02:46.7]} 12. Bxd4 {[%clk 0:02:52.8]}
12... Bxd4 {[%clk 0:02:47.4]} 13. Qxd4 {[%clk 0:02:53]} 13... Ne6 {[%clk
0:02:47.9]} 14. Qd2 {[%clk 0:02:50.6]} 14... Bd7 {[%clk 0:02:47.3]} 15. Rad1
{[%clk 0:02:45.6]} 15... Bc6 {[%clk 0:02:47]} 16. Qh6 {[%clk 0:02:35.1]} 16...
Qa5 {[%clk 0:02:41.9]} 17. Nd5 {[%clk 0:02:31.5]} 17... Bxd5 {[%clk 0:02:42.1]}
18. exd5 {[%clk 0:02:30.2]} 18... Ng7 {[%clk 0:02:42.3]} 19. Rd4 {[%clk
0:02:22.8]} 19... Nf5 {[%clk 0:02:39.9]} 20. Qd2 {[%clk 0:02:18]} 20... Qxd2
{[%clk 0:02:30.1]} 21. Rxd2 {[%clk 0:02:18.9]} 21... Rfc8 {[%clk 0:02:26.1]} 22.
b3 {[%clk 0:02:14]} 22... Rc5 {[%clk 0:02:25.9]} 23. a4 {[%clk 0:02:09.7]} 23...
a6 {[%clk 0:02:23.7]} 24. Ra1 {[%clk 0:02:07.8]} 24... Rb8 {[%clk 0:02:18.9]}
25. Bf1 {[%clk 0:02:03.9]} 25... h5 {[%clk 0:02:15.7]} 26. b4 {[%clk 0:02:01.7]}
26... Rc7 {[%clk 0:02:15]} 27. a5 {[%clk 0:02:02]} 27... Rbc8 {[%clk 0:02:14.8]}
28. Re1 {[%clk 0:02:00.7]} 28... Kf8 {[%clk 0:02:13.2]} 29. h3 {[%clk
0:02:00.1]} 29... Rb8 {[%clk 0:02:04.1]} 30. Kh2 {[%clk 0:01:54.1]} 30... b6
{[%clk 0:02:03.2]} 31. axb6 {[%clk 0:01:34.1]} 31... Rxb6 {[%clk 0:02:04.1]} 32.
b5 {[%clk 0:01:30.8]} 32... Rc5 {[%clk 0:01:39.6]} 33. Rb1 {[%clk 0:01:13.5]}
33... Kg7 {[%clk 0:01:09.8]} 34. Be2 {[%clk 0:01:11]} 34... Kf6 {[%clk 0:01:08]}
35. g4 {[%clk 0:01:10.7]} 35... hxg4 {[%clk 0:01:06.9]} 36. hxg4 {[%clk
0:01:11.6]} 36... Nh4 {[%clk 0:01:06.7]} 37. Kg3 {[%clk 0:01:10.8]} 37... g5
{[%clk 0:01:07.1]} 38. f4 {[%clk 0:01:06.9]} 38... Ng6 {[%clk 0:01:06.6]} 39.
fxg5+ {[%clk 0:00:58.2]} 39... Kxg5 {[%clk 0:01:07.5]} 40. Rf1 {[%clk
0:00:55.9]} 40... Ne5 {[%clk 0:01:04.9]} 41. Rf5+ {[%clk 0:00:30]} 41... Kg6
{[%clk 0:01:04.9]} 42. Kf4 {[%clk 0:00:29.4]} 42... Nxc4 {[%clk 0:00:54.4]} 43.
Rg5+ {[%clk 0:00:27.5]} 43... Kf6 {[%clk 0:00:53.8]} 44. Rf5+ {[%clk 0:00:26.9]}
44... Kg7 {[%clk 0:00:54.2]} 45. Rg5+ {[%clk 0:00:25.3]} 45... Kf8 {[%clk
0:00:54.5]} 46. Bxc4 {[%clk 0:00:15.7]} 46... Rxc4+ {[%clk 0:00:53.9]} 47. Kf5
{[%clk 0:00:15.8]} 47... Rxb5 {[%clk 0:00:51.9]} 48. Rh5 {[%clk 0:00:10.1]}
48... e6+ {[%clk 0:00:40.6]} 49. Kf6 {[%clk 0:00:04.2]} 49... Rf4+ {[%clk
0:00:40.8]} 50. Kg5 {[%clk 0:00:04.4]} 50... Rf1 {[%clk 0:00:39.1]} 51. Rh8+
{[%clk 0:00:03.2]} 51... Ke7 {[%clk 0:00:36]} 52. Ra8 {[%clk 0:00:03.2]} 52...
Rxd5+ {[%clk 0:00:31.3]} 53. Rxd5 {[%clk 0:00:03.3]} 53... exd5 {[%clk
0:00:32.2]} 54. Rxa6 {[%clk 0:00:02.6]} 54... Ke6 {[%clk 0:00:32.8]} 0-1

[Event "*** Titled Tuesday Blitz"]
[Site "Chess.com"]
[Date "2020.11.10"]
[Round "8"]
[White "TimofeevAr"]
[Black "jefferyx"]
[Result "0-1"]
[WhiteElo "2854"]
[BlackElo "2978"]
[TimeControl "180+1"]
[EndTime "11:34:13 PST"]
[Termination "jefferyx won by resignation"]

1. c4 {[%clk 0:03:00.9]} 1... c5 {[%clk 0:02:56.5]} 2. Nc3 {[%clk 0:02:59.8]}
2... g6 {[%clk 0:02:56.3]} 3. g3 {[%clk 0:02:59.8]} 3... Bg7 {[%clk 0:02:56.8]}
4. Bg2 {[%clk 0:03:00.4]} 4... Nc6 {[%clk 0:02:56.7]} 5. d3 {[%clk 0:02:59]}
5... b6 {[%clk 0:02:49.2]} 6. Qd2 {[%clk 0:02:53.2]} 6... Bb7 {[%clk 0:02:49.3]}
7. b3 {[%clk 0:02:53.5]} 7... f5 {[%clk 0:02:43.2]} 8. Bb2 {[%clk 0:02:53.1]}
8... Nf6 {[%clk 0:02:43.9]} 9. Nf3 {[%clk 0:02:51]} 9... O-O {[%clk 0:02:43.9]}
10. O-O {[%clk 0:02:50.7]} 10... d6 {[%clk 0:02:42.6]} 11. Ng5 {[%clk
0:02:39.5]} 11... Qd7 {[%clk 0:02:38.8]} 12. Nd5 {[%clk 0:02:39.6]} 12... Rae8
{[%clk 0:02:13.6]} 13. Rae1 {[%clk 0:02:25.8]} 13... e6 {[%clk 0:02:09.6]} 14.
Nxf6+ {[%clk 0:02:25.1]} 14... Bxf6 {[%clk 0:02:10.5]} 15. Bxf6 {[%clk
0:02:24.8]} 15... Rxf6 {[%clk 0:02:11.4]} 16. e3 {[%clk 0:02:15.2]} 16... h6
{[%clk 0:02:01.5]} 17. Nf3 {[%clk 0:02:15]} 17... e5 {[%clk 0:02:02.1]} 18. Qc3
{[%clk 0:02:09.2]} 18... Qg7 {[%clk 0:01:59.3]} 19. Nd2 {[%clk 0:02:07.5]} 19...
Kh7 {[%clk 0:01:58.1]} 20. a3 {[%clk 0:01:57.7]} 20... Nd8 {[%clk 0:01:54.6]}
21. Bd5 {[%clk 0:01:53.1]} 21... Bxd5 {[%clk 0:01:48.1]} 22. cxd5 {[%clk
0:01:52.9]} 22... Qb7 {[%clk 0:01:49]} 23. e4 {[%clk 0:01:41.5]} 23... f4 {[%clk
0:01:38.2]} 24. f3 {[%clk 0:01:41.8]} 24... Nf7 {[%clk 0:01:36.3]} 25. g4 {[%clk
0:01:38.6]} 25... h5 {[%clk 0:01:35.8]} 26. h3 {[%clk 0:01:38.4]} 26... Qe7
{[%clk 0:01:17.1]} 27. Kg2 {[%clk 0:01:36.5]} 27... Nd8 {[%clk 0:01:13.8]} 28.
Nc4 {[%clk 0:01:29.1]} 28... Rff8 {[%clk 0:01:13]} 29. Qd2 {[%clk 0:01:27.2]}
29... Nf7 {[%clk 0:01:12]} 30. a4 {[%clk 0:01:25.3]} 30... Rb8 {[%clk 0:01:11]}
31. Qf2 {[%clk 0:01:22]} 31... Kg7 {[%clk 0:01:10.8]} 32. Rg1 {[%clk 0:01:20.6]}
32... Rh8 {[%clk 0:01:10.9]} 33. Rh1 {[%clk 0:01:20.9]} 33... Kf8 {[%clk
0:01:08.6]} 34. Rc1 {[%clk 0:01:18.7]} 34... Ke8 {[%clk 0:01:08.8]} 35. Rcg1
{[%clk 0:00:53.4]} 35... Kd7 {[%clk 0:01:09.1]} 36. Kf1 {[%clk 0:00:53.7]} 36...
hxg4 {[%clk 0:00:59.1]} 37. hxg4 {[%clk 0:00:53.4]} 37... Ng5 {[%clk 0:00:59.7]}
38. Qg2 {[%clk 0:00:48.9]} 38... Qg7 {[%clk 0:00:52.6]} 39. Rxh8 {[%clk
0:00:47.3]} 39... Rxh8 {[%clk 0:00:53.5]} 40. Rh1 {[%clk 0:00:47.7]} 40... Rh6
{[%clk 0:00:54.2]} 41. Rxh6 {[%clk 0:00:41.9]} 41... Qxh6 {[%clk 0:00:55.1]} 42.
Nd2 {[%clk 0:00:41.9]} 42... a6 {[%clk 0:00:45.6]} 43. Ke2 {[%clk 0:00:42]}
43... b5 {[%clk 0:00:45.7]} 44. a5 {[%clk 0:00:40.1]} 44... Qh4 {[%clk
0:00:37.5]} 45. Kf1 {[%clk 0:00:35.5]} 45... Qh3 {[%clk 0:00:27.2]} 46. Qxh3
{[%clk 0:00:34.6]} 46... Nxh3 {[%clk 0:00:28.1]} 47. Ke2 {[%clk 0:00:33.8]}
47... Ng5 {[%clk 0:00:28.6]} 48. b4 {[%clk 0:00:29.3]} 48... cxb4 {[%clk
0:00:19.8]} 49. Nb3 {[%clk 0:00:28]} 49... Nf7 {[%clk 0:00:18]} 50. Kd1 {[%clk
0:00:27.8]} 50... Nd8 {[%clk 0:00:18]} 51. Kc2 {[%clk 0:00:27.4]} 51... Nb7
{[%clk 0:00:18.4]} 52. Kd2 {[%clk 0:00:26.3]} 52... Ke7 {[%clk 0:00:18.9]} 53.
d4 {[%clk 0:00:25.1]} 53... Kf6 {[%clk 0:00:18.8]} 54. Kd3 {[%clk 0:00:22.5]}
54... Kg5 {[%clk 0:00:18.5]} 55. dxe5 {[%clk 0:00:22.3]} 55... dxe5 {[%clk
0:00:19.4]} 56. Ke2 {[%clk 0:00:22.6]} 56... Kh4 {[%clk 0:00:19.2]} 57. Kf2
{[%clk 0:00:23]} 57... Kh3 {[%clk 0:00:17.8]} 58. d6 {[%clk 0:00:18.1]} 58...
Nxd6 {[%clk 0:00:17.9]} 59. Nc5 {[%clk 0:00:18.6]} 59... Nc4 {[%clk 0:00:14.3]}
60. Nxa6 {[%clk 0:00:18.6]} 60... b3 {[%clk 0:00:14.8]} 0-1

[Event "*** Titled Tuesday Blitz"]
[Site "Chess.com"]
[Date "2020.11.10"]
[Round "8"]
[White "monalize"]
[Black "Lenyas66"]
[Result "1/2-1/2"]
[WhiteElo "2310"]
[BlackElo "2458"]
[TimeControl "180+1"]
[EndTime "11:34:13 PST"]
[Termination "Game drawn - insufficient material"]

1. e4 {[%clk 0:03:00.9]} 1... e6 {[%clk 0:03:00.2]} 2. d4 {[%clk 0:02:59.7]}
2... d5 {[%clk 0:03:00.3]} 3. Nd2 {[%clk 0:02:58.8]} 3... Nf6 {[%clk 0:03:00.2]}
4. e5 {[%clk 0:02:57.3]} 4... Nfd7 {[%clk 0:03:00.5]} 5. Bd3 {[%clk 0:02:56.3]}
5... c5 {[%clk 0:03:00.6]} 6. c3 {[%clk 0:02:56.3]} 6... Nc6 {[%clk 0:03:00.7]}
7. Ne2 {[%clk 0:02:55.7]} 7... cxd4 {[%clk 0:03:00.6]} 8. cxd4 {[%clk
0:02:55.3]} 8... f6 {[%clk 0:03:01]} 9. exf6 {[%clk 0:02:54.1]} 9... Nxf6 {[%clk
0:03:01.3]} 10. Nf3 {[%clk 0:02:51.7]} 10... Bd6 {[%clk 0:03:01.4]} 11. O-O
{[%clk 0:02:50.9]} 11... Qc7 {[%clk 0:03:01.4]} 12. b3 {[%clk 0:02:48.3]} 12...
O-O {[%clk 0:02:57.5]} 13. Bb2 {[%clk 0:02:46.3]} 13... Bd7 {[%clk 0:02:49.1]}
14. Rc1 {[%clk 0:02:45.1]} 14... Be8 {[%clk 0:02:49.2]} 15. Ng3 {[%clk
0:02:42.5]} 15... Bxg3 {[%clk 0:02:34.2]} 16. fxg3 {[%clk 0:02:29.4]} 16... Bh5
{[%clk 0:02:34]} 17. Qe1 {[%clk 0:02:24.1]} 17... Rae8 {[%clk 0:02:17.2]} 18.
Ne5 {[%clk 0:02:11.5]} 18... Qb6 {[%clk 0:02:13.7]} 19. Qe3 {[%clk 0:01:45]}
19... Ng4 {[%clk 0:02:01.8]} 20. Nxg4 {[%clk 0:01:34.5]} 20... Bxg4 {[%clk
0:02:01.6]} 21. Rxf8+ {[%clk 0:01:32.6]} 21... Rxf8 {[%clk 0:02:01]} 22. h3
{[%clk 0:01:31.3]} 22... Bf5 {[%clk 0:01:56.7]} 23. Bxf5 {[%clk 0:01:27.6]}
23... exf5 {[%clk 0:01:56.9]} 24. Qe6+ {[%clk 0:01:27.3]} 24... Kh8 {[%clk
0:01:56.7]} 25. Qxd5 {[%clk 0:01:26.8]} 25... h6 {[%clk 0:01:50.4]} 26. Qc5
{[%clk 0:01:02.6]} 26... Qxc5 {[%clk 0:01:41.2]} 27. Rxc5 {[%clk 0:01:00.1]}
27... Rd8 {[%clk 0:01:35.8]} 28. Rxf5 {[%clk 0:00:56.3]} 28... Nxd4 {[%clk
0:01:35.1]} 29. Rf7 {[%clk 0:00:55.9]} 29... Ne6 {[%clk 0:01:21]} 30. Rxb7
{[%clk 0:00:53.6]} 30... Rd2 {[%clk 0:01:20.8]} 31. Be5 {[%clk 0:00:48.9]} 31...
Rxa2 {[%clk 0:01:20.8]} 32. Re7 {[%clk 0:00:47.6]} 32... Ra6 {[%clk 0:01:20]}
33. g4 {[%clk 0:00:40.7]} 33... Kg8 {[%clk 0:01:19.9]} 34. Rb7 {[%clk
0:00:39.2]} 34... g5 {[%clk 0:01:09.7]} 35. Kf2 {[%clk 0:00:38]} 35... Nc5
{[%clk 0:01:06.7]} 36. Rb8+ {[%clk 0:00:33.8]} 36... Kf7 {[%clk 0:01:05.2]} 37.
Bd4 {[%clk 0:00:30.5]} 37... Nd3+ {[%clk 0:00:56.4]} 38. Ke3 {[%clk 0:00:29.4]}
38... Nf4 {[%clk 0:00:56.2]} 39. Rb7+ {[%clk 0:00:24.4]} 39... Ke6 {[%clk
0:00:54.2]} 40. Rxa7 {[%clk 0:00:23.8]} 40... Rd6 {[%clk 0:00:47]} 41. g3 {[%clk
0:00:18.9]} 41... Nxh3 {[%clk 0:00:44.2]} 42. Rh7 {[%clk 0:00:17]} 42... Kd5
{[%clk 0:00:42.9]} 43. Bg7 {[%clk 0:00:16.5]} 43... Rb6 {[%clk 0:00:37.5]} 44.
Rxh6 {[%clk 0:00:15.3]} 44... Rxb3+ {[%clk 0:00:37.5]} 45. Ke2 {[%clk
0:00:14.5]} 45... Rxg3 {[%clk 0:00:37.3]} 46. Bf6 {[%clk 0:00:12.3]} 46... Nf4+
{[%clk 0:00:35.9]} 47. Kf2 {[%clk 0:00:10.9]} 47... Rxg4 {[%clk 0:00:34.5]} 48.
Kf3 {[%clk 0:00:11.1]} 48... Rg1 {[%clk 0:00:32.6]} 49. Bxg5 {[%clk 0:00:11.2]}
49... Nd3 {[%clk 0:00:30.3]} 50. Be3 {[%clk 0:00:10.5]} 50... Ne5+ {[%clk
0:00:30]} 51. Ke2 {[%clk 0:00:10.1]} 51... Rg2+ {[%clk 0:00:29.5]} 52. Kf1
{[%clk 0:00:09.3]} 52... Ra2 {[%clk 0:00:28.4]} 53. Rh4 {[%clk 0:00:09]} 53...
Nc4 {[%clk 0:00:25.2]} 54. Rd4+ {[%clk 0:00:07.7]} 54... Kc5 {[%clk 0:00:15.1]}
55. Re4+ {[%clk 0:00:07.7]} 55... Kb4 {[%clk 0:00:14.6]} 56. Bf4 {[%clk
0:00:07.8]} 56... Kc3 {[%clk 0:00:14.2]} 57. Re2 {[%clk 0:00:07.8]} 57... Rxe2
{[%clk 0:00:12.7]} 58. Kxe2 {[%clk 0:00:07.6]} 1/2-1/2

[Event "*** Titled Tuesday Blitz"]
[Site "Chess.com"]
[Date "2020.11.10"]
[Round "8"]
[White "KuzubovYuriy"]
[Black "mirciulica14"]
[Result "1-0"]
[WhiteElo "2835"]
[BlackElo "2640"]
[TimeControl "180+1"]
[EndTime "11:34:15 PST"]
[Termination "KuzubovYuriy won by resignation"]

1. d4 {[%clk 0:03:00.9]} 1... Nf6 {[%clk 0:02:59.7]} 2. Nf3 {[%clk 0:02:59.9]}
2... e6 {[%clk 0:02:58.8]} 3. c4 {[%clk 0:02:59.7]} 3... Bb4+ {[%clk 0:02:58.7]}
4. Bd2 {[%clk 0:02:59.6]} 4... a5 {[%clk 0:02:59.3]} 5. g3 {[%clk 0:02:58.8]}
5... b6 {[%clk 0:02:59.6]} 6. Bg2 {[%clk 0:02:59.1]} 6... Bb7 {[%clk 0:03:00.3]}
7. O-O {[%clk 0:02:59.6]} 7... O-O {[%clk 0:03:00.8]} 8. Bf4 {[%clk 0:03:00.1]}
8... Be7 {[%clk 0:03:01.4]} 9. Nc3 {[%clk 0:02:59.1]} 9... Ne4 {[%clk 0:03:02]}
10. Qd3 {[%clk 0:02:57.6]} 10... Nxc3 {[%clk 0:02:57.1]} 11. bxc3 {[%clk
0:02:58.5]} 11... f5 {[%clk 0:02:49.1]} 12. Rfe1 {[%clk 0:02:39.1]} 12... d6
{[%clk 0:02:38.2]} 13. Qb1 {[%clk 0:02:27.7]} 13... Nd7 {[%clk 0:02:25.1]} 14.
Ng5 {[%clk 0:02:14.2]} 14... Bxg5 {[%clk 0:02:19.7]} 15. Bxb7 {[%clk 0:02:13]}
15... Rb8 {[%clk 0:02:17.7]} 16. Bxg5 {[%clk 0:02:12.1]} 16... Qxg5 {[%clk
0:02:18.6]} 17. Bg2 {[%clk 0:02:11.3]} 17... e5 {[%clk 0:02:05.7]} 18. Qb5
{[%clk 0:02:09.1]} 18... Qe7 {[%clk 0:01:48.5]} 19. Qc6 {[%clk 0:01:33.4]} 19...
Nf6 {[%clk 0:01:41.8]} 20. Rab1 {[%clk 0:01:30.5]} 20... e4 {[%clk 0:01:16.8]}
21. Rb5 {[%clk 0:01:29]} 21... Qd7 {[%clk 0:01:09.6]} 22. Qxd7 {[%clk
0:01:22.2]} 22... Nxd7 {[%clk 0:01:10.5]} 23. f3 {[%clk 0:01:16.2]} 23... e3
{[%clk 0:00:43.6]} 24. f4 {[%clk 0:01:14.7]} 24... g6 {[%clk 0:00:42.8]} 25. Bc6
{[%clk 0:01:10.8]} 25... Nf6 {[%clk 0:00:40.5]} 26. Kg2 {[%clk 0:01:07.3]} 26...
Rf7 {[%clk 0:00:29.3]} 27. c5 {[%clk 0:01:03.5]} 27... dxc5 {[%clk 0:00:18.8]}
28. dxc5 {[%clk 0:01:02.7]} 28... Re7 {[%clk 0:00:17]} 29. Rd1 {[%clk
0:00:53.5]} 29... Re6 {[%clk 0:00:07.5]} 30. Bf3 {[%clk 0:00:52.9]} 30... Ne4
{[%clk 0:00:04.9]} 31. Bxe4 {[%clk 0:00:51.6]} 31... Rxe4 {[%clk 0:00:05.8]} 32.
Rd7 {[%clk 0:00:46.9]} 32... Rc8 {[%clk 0:00:03.3]} 33. Kf3 {[%clk 0:00:40.3]}
33... Ra4 {[%clk 0:00:02.4]} 34. cxb6 {[%clk 0:00:39.7]} 34... cxb6 {[%clk
0:00:03.3]} 35. Rxb6 {[%clk 0:00:39.3]} 35... Rxa2 {[%clk 0:00:03.9]} 36. Rbb7
{[%clk 0:00:39.4]} 36... Rc2 {[%clk 0:00:03.7]} 37. Rg7+ {[%clk 0:00:38.8]}
37... Kf8 {[%clk 0:00:03.8]} 38. Rxh7 {[%clk 0:00:39.7]} 38... Kg8 {[%clk
0:00:03.3]} 39. Rbg7+ {[%clk 0:00:39.3]} 39... Kf8 {[%clk 0:00:03.6]} 40. Rxg6
{[%clk 0:00:39.7]} 40... R2xc3 {[%clk 0:00:03.1]} 41. Ra6 {[%clk 0:00:34.9]}
41... R3c7 {[%clk 0:00:02.5]} 42. Rxc7 {[%clk 0:00:34.3]} 42... Rxc7 {[%clk
0:00:03.4]} 43. Rxa5 {[%clk 0:00:34.9]} 43... Rf7 {[%clk 0:00:04]} 44. Kxe3
{[%clk 0:00:34.9]} 44... Kg7 {[%clk 0:00:04.6]} 45. Kf3 {[%clk 0:00:35]} 45...
Kg6 {[%clk 0:00:04.7]} 46. h3 {[%clk 0:00:34.7]} 46... Rc7 {[%clk 0:00:04.6]}
47. g4 {[%clk 0:00:34.5]} 47... Rc3+ {[%clk 0:00:05]} 48. e3 {[%clk 0:00:34.3]}
48... fxg4+ {[%clk 0:00:05.9]} 49. hxg4 {[%clk 0:00:34.7]} 49... Rc1 {[%clk
0:00:06.8]} 50. g5 {[%clk 0:00:34.8]} 50... Rc4 {[%clk 0:00:06.2]} 51. Kg4
{[%clk 0:00:32.5]} 51... Re4 {[%clk 0:00:04.2]} 52. Re5 {[%clk 0:00:32.2]} 52...
Ra4 {[%clk 0:00:04.1]} 53. e4 {[%clk 0:00:31.8]} 53... Ra1 {[%clk 0:00:04.2]}
54. f5+ {[%clk 0:00:31.9]} 54... Kf7 {[%clk 0:00:05]} 55. Re6 {[%clk 0:00:32.2]}
55... Rg1+ {[%clk 0:00:05.3]} 56. Kf4 {[%clk 0:00:32.5]} 56... Rf1+ {[%clk
0:00:05.9]} 57. Ke5 {[%clk 0:00:33]} 57... Ra1 {[%clk 0:00:05]} 58. g6+ {[%clk
0:00:33.4]} 58... Kg7 {[%clk 0:00:05.6]} 59. Re7+ {[%clk 0:00:33.4]} 59... Kh6
{[%clk 0:00:05.1]} 60. Rh7+ {[%clk 0:00:33.2]} 60... Kg5 {[%clk 0:00:05.2]} 61.
g7 {[%clk 0:00:32]} 61... Ra8 {[%clk 0:00:05.2]} 62. Rh8 {[%clk 0:00:31.8]}
62... Ra5+ {[%clk 0:00:04.8]} 63. Kd6 {[%clk 0:00:31.4]} 63... Ra6+ {[%clk
0:00:05.2]} 64. Kc5 {[%clk 0:00:31.6]} 64... Ra5+ {[%clk 0:00:05.4]} 65. Kb4
{[%clk 0:00:31.8]} 1-0